fUSD/lending_fUSD_20260702
["ID","MTS","AMOUNT","RATE_DAILY","PERIOD"]
[426858978,1782964240000,-155.0,0.00029,4]
[426858982,1782964240000,-155.0,0.00029,4]
[426858979,1782964240000,-155.0,0.00029,4]
[426858980,1782964240000,-155.0,0.00029,4]
[426858981,1782964240000,-155.0,0.00029,4]
[426858983,1782964240000,-155.0,0.00029,4]
[426858984,1782964240000,-155.0,0.00029,4]
[426858988,1782964240000,-183.0,0.00029,4]
[426858990,1782964240000,-153.0,0.00029,4]
[426859001,1782964240000,-153.0,0.00029,4]
[426859019,1782964240000,-150.0,0.00029534,2]
[426859071,1782964240000,-4000.0,0.0003,7]
[426859018,1782964240000,-2000.0,0.00029533,23]
[426859049,1782964240000,-4999.41685682,0.000299,2]
[426859048,1782964240000,-4999.41685682,0.000299,2]
[426859051,1782964240000,-4999.41685682,0.000299,2]
[426859050,1782964240000,-4999.41685682,0.000299,2]
[426859055,1782964240000,-4999.41685682,0.000299,2]
[426859057,1782964240000,-4999.41685682,0.000299,2]
[426859056,1782964240000,-4999.41685682,0.000299,2]
[426859060,1782964240000,-258.26731416,0.0002993,2]
[426859059,1782964240000,-154.11,0.00029909,2]
[426859058,1782964240000,-4999.41685682,0.000299,2]
[426859062,1782964240000,-159.45,0.00029962,7]
[426859047,1782964240000,-4999.41685682,0.000299,2]
[426859061,1782964240000,-664.0,0.0002994,5]
[426859064,1782964240000,-242.6690847,0.0002999,2]
[426859067,1782964240000,-501.95764274,0.00029999,14]
[426859066,1782964240000,-496.17036032,0.00029997,2]
[426859070,1782964240000,-12500.0,0.0003,2]
[426859068,1782964240000,-3000.0,0.00029999,30]
[426859073,1782964240000,-276.17122023,0.0003,2]
[426859072,1782964240000,-250.92914516,0.0003,7]
[426859069,1782964240000,-221.82,0.0003,2]
[426859075,1782964240000,-2508.61983874,0.0003,14]
[426859074,1782964240000,-297.87666414,0.0003,2]
[426859014,1782964240000,-159.45,0.0002944,7]
[426859065,1782964240000,-5684.8291,0.0002999,2]
[426859045,1782964240000,-4999.41685682,0.000299,2]
[426859063,1782964240000,-847.32468476,0.0002999,2]
[426859054,1782964240000,-4999.41685682,0.000299,2]
[426859016,1782964240000,-150.15,0.00029472,14]
[426859052,1782964240000,-4999.41685682,0.000299,2]
[426859022,1782964240000,-154.11,0.00029681,7]
[426859020,1782964240000,-159.45,0.00029614,2]
[426859033,1782964240000,-150.0,0.00029836,2]
[426859030,1782964240000,-150.0,0.00029836,2]
[426859026,1782964240000,-159.45,0.00029788,30]
[426859027,1782964240000,-2391.03198703,0.00029789,2]
[426859029,1782964240000,-289.486476,0.00029809,7]
[426859028,1782964240000,-208.64889122,0.000298,2]
[426859031,1782964240000,-150.0,0.00029836,2]
[426859032,1782964240000,-150.0,0.00029836,2]
[426859034,1782964240000,-203.52222125,0.00029836,2]
[426859021,1782964240000,-250.0,0.00029631,7]
[426859043,1782964240000,-4999.41685682,0.000299,2]
[426859038,1782964240000,-1000.0,0.00029899,30]
[426859046,1782964240000,-4999.41685682,0.000299,2]
[426859053,1782964240000,-4999.41685682,0.000299,2]
[426859042,1782964240000,-4999.41685689,0.000299,2]
[426859041,1782964240000,-71522.77578433,0.000299,2]
[426859044,1782964240000,-4999.41685682,0.000299,2]
[426859039,1782964240000,-612.93854249,0.00029899,30]
[426859037,1782964240000,-151.77,0.00029856,7]
[426859036,1782964240000,-152.09508065,0.00029855,2]
[426859035,1782964240000,-206.91786761,0.00029836,2]
[426859040,1782964240000,-500.0,0.00029899,14]
[426859121,1782964241000,-800.0,0.000301,11]
[426859112,1782964241000,-151.0,0.0003009,7]
[426859119,1782964241000,-800.0,0.000301,11]
[426859120,1782964241000,-800.0,0.000301,11]
[426859109,1782964241000,-806.72356294,0.0003009,11]
[426859102,1782964241000,-800.0,0.0003009,11]
[426859106,1782964241000,-800.0,0.0003009,11]
[426859105,1782964241000,-800.0,0.0003009,11]
[426859104,1782964241000,-800.0,0.0003009,11]
[426859111,1782964241000,-151.0,0.0003009,7]
[426859103,1782964241000,-800.0,0.0003009,11]
[426859110,1782964241000,-435408.23055198,0.0003009,2]
[426859113,1782964241000,-972.41367015,0.00030097,2]
[426859122,1782964241000,-800.0,0.000301,11]
[426859118,1782964241000,-800.0,0.000301,11]
[426859115,1782964241000,-2000.0,0.00030099,11]
[426859117,1782964241000,-800.0,0.000301,11]
[426859116,1782964241000,-800.0,0.000301,11]
[426859125,1782964241000,-12306.22,0.00030125,2]
[426859123,1782964241000,-800.0,0.000301,11]
[426859124,1782964241000,-1009.0692486,0.0003011,2]
[426859133,1782964241000,-510.87608659,0.00030136,15]
[426859129,1782964241000,-500.0,0.00030136,15]
[426859126,1782964241000,-154.11,0.00030136,30]
[426859131,1782964241000,-500.0,0.00030136,15]
[426859114,1782964241000,-598.33761562,0.00030099,2]
[426859101,1782964241000,-800.0,0.0003009,11]
[426859076,1782964241000,-10234.26626033,0.0003,5]
[426859108,1782964241000,-800.0,0.0003009,11]
[426859127,1782964241000,-159.53,0.00030136,2]
[426859077,1782964241000,-20350.31000386,0.0003,2]
[426859079,1782964241000,-10392.52689123,0.0003,2]
[426859078,1782964241000,-1118.0806794,0.0003,2]
[426859080,1782964241000,-2000.0,0.0003,14]
[426859083,1782964241000,-1000.0,0.0003,2]
[426859081,1782964241000,-1130.26499916,0.0003,2]
[426859086,1782964241000,-496.14404869,0.0003,15]
[426859084,1782964241000,-166.90179368,0.0003,2]
[426859082,1782964241000,-1860.99940478,0.0003,2]
[426859085,1782964241000,-266.03571685,0.0003,2]
[426859088,1782964241000,-467.19,0.0003,15]
[426859087,1782964241000,-30000.0,0.0003,3]
[426859090,1782964241000,-151.0,0.0003,7]
[426859091,1782964241000,-151.0,0.0003,7]
[426859089,1782964241000,-9000.0,0.0003,5]
[426859095,1782964241000,-526.72784571,0.0003008,2]
[426859094,1782964241000,-174.0,0.00030045,2]
[426859096,1782964241000,-800.0,0.0003009,11]
[426859097,1782964241000,-800.0,0.0003009,11]
[426859093,1782964241000,-155.08542174,0.00030036,11]
[426859092,1782964241000,-150.15,0.0003002,14]
[426859098,1782964241000,-800.0,0.0003009,11]
[426859099,1782964241000,-800.0,0.0003009,11]
[426859107,1782964241000,-800.0,0.0003009,11]
[426859100,1782964241000,-800.0,0.0003009,11]
[426859130,1782964241000,-500.0,0.00030136,15]
[426859176,1782964241000,-500.0,0.00030999,120]
[426859132,1782964241000,-500.0,0.00030136,15]
[426859166,1782964241000,-847.32468476,0.00030637,2]
[426859162,1782964241000,-151.0,0.00030576,7]
[426859163,1782964241000,-151.0,0.00030576,7]
[426859161,1782964241000,-151.0,0.00030576,7]
[426859169,1782964241000,-160.0,0.000307,30]
[426859160,1782964241000,-151.0,0.00030576,7]
[426859172,1782964241000,-1756.0,0.00030866,10]
[426859170,1782964241000,-200.0,0.0003082,2]
[426859173,1782964241000,-847.32468476,0.0003096,2]
[426859177,1782964241000,-323.08878728,0.00030999,120]
[426859179,1782964241000,-150.0,0.00031011,2]
[426859171,1782964241000,-3000.0,0.00030821,32]
[426859180,1782964241000,-226.14894933,0.0003104,2]
[426859178,1782964241000,-1000.0,0.00031,7]
[426859181,1782964241000,-152.09508065,0.00031077,2]
[426859174,1782964241000,-500.0,0.00030999,120]
[426859189,1782964241000,-3000.0,0.00031232,33]
[426859175,1782964241000,-500.0,0.00030999,120]
[426859183,1782964241000,-2391.03198703,0.00031122,2]
[426859182,1782964241000,-503.0,0.00031102,6]
[426859184,1782964241000,-2336.126109,0.00031211,2]
[426859186,1782964241000,-1211.8673476,0.00031211,2]
[426859188,1782964241000,-2000.0,0.00031231,33]
[426859187,1782964241000,-2016.4302138,0.00031211,2]
[426859185,1782964241000,-872.2475868,0.00031211,2]
[426859167,1782964241000,-2168.62,0.00030676,30]
[426859165,1782964241000,-160.0,0.000306,120]
[426859128,1782964241000,-500.0,0.00030136,15]
[426859159,1782964241000,-441212.047,0.00030576,120]
[426859168,1782964241000,-2391.03198703,0.00030678,2]
[426859135,1782964241000,-166.95,0.00030136,7]
[426859143,1782964241000,-3000.0,0.0003041,31]
[426859142,1782964241000,-2000.0,0.00030409,31]
[426859134,1782964241000,-2000.0,0.00030136,90]
[426859144,1782964241000,-2000.0,0.0003041,60]
[426859140,1782964241000,-847.32468476,0.00030313,2]
[426859141,1782964241000,-1432.131,0.00030371,26]
[426859139,1782964241000,-2391.03198703,0.00030233,2]
[426859136,1782964241000,-431.18061263,0.00030137,2]
[426859137,1782964241000,-500.0,0.00030137,3]
[426859145,1782964241000,-162.95,0.00030411,120]
[426859147,1782964241000,-233.97263037,0.00030476,2]
[426859138,1782964241000,-433.71,0.00030182,30]
[426859149,1782964241000,-500.0,0.00030499,120]
[426859148,1782964241000,-500.0,0.00030499,120]
[426859164,1782964241000,-160.863399,0.00030576,7]
[426859158,1782964241000,-500.0,0.00030575,7]
[426859156,1782964241000,-481.21638394,0.00030575,2]
[426859154,1782964241000,-500.0,0.00030575,7]
[426859155,1782964241000,-500.0,0.00030575,7]
[426859157,1782964241000,-500.0,0.00030575,7]
[426859151,1782964241000,-500.0,0.00030499,120]
[426859153,1782964241000,-30000.0,0.00030567,2]
[426859146,1782964241000,-2500.0,0.00030476,2]
[426859152,1782964241000,-472.64,0.000305,7]
[426859150,1782964241000,-500.0,0.00030499,120]
[426859224,1782964242000,-2000.0,0.00031998,20]
[426859241,1782964242000,-2000.0,0.00031999,32]
[426859233,1782964242000,-500.0,0.00031999,7]
[426859230,1782964242000,-500.0,0.00031999,120]
[426859226,1782964242000,-500.0,0.00031999,120]
[426859217,1782964242000,-2000.0,0.00031899,6]
[426859220,1782964242000,-350.0,0.00031934,22]
[426859223,1782964242000,-2000.0,0.00031998,10]
[426859225,1782964242000,-500.0,0.00031999,120]
[426859221,1782964242000,-331.6147653,0.00031954,2]
[426859240,1782964242000,-2000.0,0.00031999,15]
[426859222,1782964242000,-2000.0,0.00031998,7]
[426859239,1782964242000,-2000.0,0.00031999,5]
[426859254,1782964242000,-200.0,0.00032,120]
[426859231,1782964242000,-500.0,0.00031999,120]
[426859236,1782964242000,-2000.0,0.00031999,2]
[426859235,1782964242000,-2000.0,0.00031999,120]
[426859237,1782964242000,-2000.0,0.00031999,30]
[426859234,1782964242000,-500.0,0.00031999,7]
[426859238,1782964242000,-2000.0,0.00031999,14]
[426859243,1782964242000,-500.0,0.00031999,7]
[426859253,1782964242000,-172.86824505,0.00032,120]
[426859252,1782964242000,-206.93698674,0.00032,120]
[426859242,1782964242000,-500.0,0.00031999,7]
[426859251,1782964242000,-226.08075329,0.00032,120]
[426859219,1782964242000,-2000.0,0.00031931,59]
[426859248,1782964242000,-190.31984572,0.00032,120]
[426859232,1782964242000,-545.07401747,0.00031999,120]
[426859229,1782964242000,-500.0,0.00031999,120]
[426859215,1782964242000,-500.0,0.00031815,120]
[426859228,1782964242000,-500.0,0.00031999,120]
[426859190,1782964242000,-847.32468476,0.00031283,2]
[426859192,1782964242000,-1049.67121808,0.0003135,2]
[426859246,1782964242000,-199.23869702,0.00032,120]
[426859193,1782964242000,-1049.67121807,0.0003135,2]
[426859195,1782964242000,-799.86645818,0.0003135,2]
[426859196,1782964242000,-799.86645817,0.0003135,2]
[426859197,1782964242000,-799.86645817,0.0003135,2]
[426859198,1782964242000,-150.15,0.0003139,14]
[426859199,1782964242000,-328.42,0.00031393,14]
[426859200,1782964242000,-2000.0,0.00031397,19]
[426859204,1782964242000,-468.78,0.00031483,3]
[426859201,1782964242000,-802.04,0.00031425,120]
[426859203,1782964242000,-2000.0,0.00031465,3]
[426859194,1782964242000,-1049.67121807,0.0003135,2]
[426859202,1782964242000,-2000.0,0.00031429,4]
[426859205,1782964242000,-160.0,0.000315,120]
[426859216,1782964242000,-500.0,0.00031815,120]
[426859214,1782964242000,-500.0,0.00031815,120]
[426859206,1782964242000,-1028.84592082,0.0003152,2]
[426859207,1782964242000,-2391.03198703,0.00031567,2]
[426859213,1782964242000,-280.79378038,0.000318,2]
[426859208,1782964242000,-847.32468476,0.00031607,2]
[426859209,1782964242000,-2000.0,0.00031642,34]
[426859211,1782964242000,-233.97263036,0.00031688,2]
[426859212,1782964242000,-496.17036032,0.00031794,2]
[426859210,1782964242000,-3000.0,0.00031643,34]
[426859218,1782964242000,-847.32468476,0.0003193,2]
[426859227,1782964242000,-500.0,0.00031999,120]
[426859191,1782964242000,-179.2683589,0.0003135,2]
[426859247,1782964242000,-167.64151724,0.00032,120]
[426859244,1782964242000,-316964.84561275,0.00032,15]
[426859310,1782964242000,-395.49250082,0.00032249,120]
[426859312,1782964242000,-12500.0,0.0003225,2]
[426859307,1782964242000,-193.11044542,0.00032199,2]
[426859300,1782964242000,-2634.0,0.00032101,10]
[426859308,1782964242000,-1019.0,0.000322,30]
[426859309,1782964242000,-5751.2,0.00032232,7]
[426859314,1782964242000,-500.0,0.00032259,7]
[426859323,1782964242000,-152.09508065,0.00032299,2]
[426859315,1782964242000,-500.0,0.00032259,7]
[426859313,1782964242000,-847.32468476,0.00032253,2]
[426859316,1782964242000,-171961.73697014,0.0003226,2]
[426859324,1782964242000,-914.67698437,0.000323,2]
[426859325,1782964242000,-152.0,0.0003232,120]
[426859317,1782964242000,-151.0,0.0003226,7]
[426859319,1782964242000,-153.406732,0.0003226,7]
[426859321,1782964242000,-151.0,0.00032287,7]
[426859318,1782964242000,-151.0,0.0003226,7]
[426859322,1782964242000,-200.0,0.00032297,2]
[426859320,1782964242000,-351.36,0.00032287,2]
[426859327,1782964242000,-200.0,0.0003232,2]
[426859326,1782964242000,-200.0,0.0003232,2]
[426859328,1782964242000,-16517.89273519,0.0003233,120]
[426859329,1782964242000,-251.0,0.0003234,2]
[426859330,1782964242000,-251.0,0.0003234,2]
[426859332,1782964242000,-207.0,0.00032393,120]
[426859245,1782964242000,-213.27932643,0.00032,120]
[426859333,1782964242000,-200.0,0.00032393,120]
[426859311,1782964242000,-500.0,0.00032249,120]
[426859305,1782964242000,-181.58711516,0.00032196,2]
[426859331,1782964242000,-251.0,0.0003234,2]
[426859304,1782964242000,-974.12702586,0.00032181,2]
[426859306,1782964242000,-538.41467571,0.00032196,2]
[426859249,1782964242000,-177.21979206,0.00032,120]
[426859255,1782964242000,-198.35405815,0.00032,120]
[426859257,1782964242000,-297.49046435,0.00032,120]
[426859256,1782964242000,-1052.4309076,0.00032,120]
[426859266,1782964242000,-185.18819408,0.00032,120]
[426859270,1782964242000,-215.43268497,0.00032,120]
[426859272,1782964242000,-1000.0,0.00032,30]
[426859278,1782964242000,-13486.5,0.00032,7]
[426859258,1782964242000,-321.42119657,0.00032,120]
[426859275,1782964242000,-800.0,0.00032,5]
[426859260,1782964242000,-224.25297287,0.00032,120]
[426859263,1782964242000,-183.37244309,0.00032,120]
[426859280,1782964242000,-20040.0,0.00032,2]
[426859250,1782964242000,-326.89647138,0.00032,120]
[426859282,1782964242000,-251.6748145,0.00032,2]
[426859294,1782964242000,-251.0,0.0003201,2]
[426859302,1782964242000,-30125.00011458,0.00032112,5]
[426859299,1782964242000,-3000.0,0.00032054,35]
[426859291,1782964242000,-251.0,0.0003201,2]
[426859287,1782964242000,-200.0,0.00032,2]
[426859290,1782964242000,-151.0,0.00032,7]
[426859303,1782964242000,-538.41467571,0.00032133,2]
[426859286,1782964242000,-151.0,0.00032,7]
[426859292,1782964242000,-251.0,0.0003201,2]
[426859296,1782964242000,-251.0,0.0003201,2]
[426859284,1782964242000,-200.0,0.00032,2]
[426859298,1782964242000,-2391.03198703,0.00032011,2]
[426859288,1782964242000,-151.0,0.00032,7]
[426859374,1782964243000,-151.0,0.000328,7]
[426859369,1782964243000,-513.30277915,0.00032761,2]
[426859378,1782964243000,-320.77948103,0.00032833,2]
[426859380,1782964243000,-500.0,0.00032876,120]
[426859367,1782964243000,-5755.81643304,0.000327,13]
[426859370,1782964243000,-151.0,0.00032762,2]
[426859368,1782964243000,-243.35619252,0.00032708,2]
[426859365,1782964243000,-251.0,0.0003267,2]
[426859366,1782964243000,-251.0,0.0003267,2]
[426859373,1782964243000,-13486.5,0.000328,7]
[426859379,1782964243000,-500.0,0.00032876,120]
[426859364,1782964243000,-200.0,0.00032643,2]
[426859377,1782964243000,-316.85430177,0.00032812,2]
[426859371,1782964243000,-4943.49492185,0.000328,2]
[426859375,1782964243000,-299.00682202,0.00032808,2]
[426859372,1782964243000,-2000.0,0.000328,15]
[426859376,1782964243000,-290.48162767,0.00032809,2]
[426859382,1782964243000,-500.0,0.00032876,7]
[426859390,1782964243000,-151.0,0.00032877,7]
[426859387,1782964243000,-417.0192,0.00032877,7]
[426859384,1782964243000,-500.0,0.00032876,7]
[426859385,1782964243000,-352.49,0.00032877,2]
[426859393,1782964243000,-290.527245,0.00032877,7]
[426859383,1782964243000,-500.0,0.00032876,7]
[426859362,1782964243000,-152.93193127,0.00032634,120]
[426859381,1782964243000,-3000.0,0.00032876,37]
[426859363,1782964243000,-1005.18798161,0.00032637,2]
[426859338,1782964243000,-1823.135,0.000324,20]
[426859359,1782964243000,-150.0,0.00032562,2]
[426859336,1782964243000,-500.0,0.00032399,120]
[426859334,1782964243000,-268.0,0.00032393,120]
[426859335,1782964243000,-272.0,0.00032393,120]
[426859337,1782964243000,-1823.135,0.000324,20]
[426859339,1782964243000,-1823.13,0.000324,20]
[426859349,1782964243000,-1000.0,0.000325,2]
[426859348,1782964243000,-462.68,0.00032497,3]
[426859340,1782964243000,-150.01962125,0.000324,10]
[426859346,1782964243000,-150.0,0.00032462,120]
[426859341,1782964243000,-13486.5,0.000324,7]
[426859343,1782964243000,-503.0,0.00032423,7]
[426859347,1782964243000,-3000.0,0.00032465,36]
[426859342,1782964243000,-2431.2400657,0.000324,2]
[426859344,1782964243000,-331.61476525,0.00032445,2]
[426859345,1782964243000,-2391.03198703,0.00032456,2]
[426859350,1782964243000,-800.0,0.000325,5]
[426859354,1782964243000,-1347.0,0.000325,25]
[426859352,1782964243000,-800.0,0.000325,5]
[426859351,1782964243000,-800.0,0.000325,5]
[426859356,1782964243000,-12499.94,0.000325,2]
[426859353,1782964243000,-800.0,0.000325,5]
[426859361,1782964243000,-847.32468476,0.00032577,2]
[426859357,1782964243000,-160.0,0.000325,120]
[426859360,1782964243000,-1591.4,0.00032572,30]
[426859355,1782964243000,-1000.0,0.000325,30]
[426859358,1782964243000,-215.45454545,0.0003253,2]
[426859392,1782964243000,-273.8,0.00032877,7]
[426859386,1782964243000,-417.0192,0.00032877,7]
[426859391,1782964243000,-151.0,0.00032877,7]
[426859426,1782964243000,-151.0,0.00032877,7]
[426859425,1782964243000,-174.426787,0.00032877,7]
[426859427,1782964243000,-174.426787,0.00032877,7]
[426859423,1782964243000,-174.426787,0.00032877,7]
[426859422,1782964243000,-151.0,0.00032877,7]
[426859424,1782964243000,-151.0,0.00032877,7]
[426859428,1782964243000,-151.0,0.00032877,7]
[426859430,1782964243000,-151.0,0.00032877,7]
[426859432,1782964243000,-151.641241,0.00032877,7]
[426859435,1782964243000,-151.0,0.00032877,7]
[426859434,1782964243000,-181.840562,0.00032877,7]
[426859439,1782964243000,-151.0,0.00032877,7]
[426859438,1782964243000,-151.0,0.00032877,7]
[426859433,1782964243000,-151.0,0.00032877,7]
[426859437,1782964243000,-151.0,0.00032877,7]
[426859436,1782964243000,-151.0,0.00032877,7]
[426859431,1782964243000,-151.0,0.00032877,7]
[426859440,1782964243000,-151.0,0.00032877,7]
[426859442,1782964243000,-151.0,0.00032877,7]
[426859441,1782964243000,-151.0,0.00032877,7]
[426859443,1782964243000,-173.446641,0.00032877,7]
[426859444,1782964243000,-151.0,0.00032877,7]
[426859446,1782964243000,-151.0,0.00032877,7]
[426859445,1782964243000,-155.971628,0.00032877,7]
[426859447,1782964243000,-151.68909,0.00032877,7]
[426859420,1782964243000,-151.0,0.00032877,7]
[426859421,1782964243000,-151.0,0.00032877,7]
[426859388,1782964243000,-417.0192,0.00032877,7]
[426859429,1782964243000,-174.426787,0.00032877,7]
[426859389,1782964243000,-417.0192,0.00032877,7]
[426859395,1782964243000,-1379.123315,0.00032877,7]
[426859394,1782964243000,-151.0,0.00032877,7]
[426859405,1782964243000,-225.43638,0.00032877,7]
[426859397,1782964243000,-1379.123315,0.00032877,7]
[426859399,1782964243000,-151.0,0.00032877,7]
[426859403,1782964243000,-201.521999,0.00032877,7]
[426859418,1782964243000,-151.0,0.00032877,7]
[426859401,1782964243000,-190.639514,0.00032877,7]
[426859396,1782964243000,-1379.123315,0.00032877,7]
[426859402,1782964243000,-151.0,0.00032877,7]
[426859404,1782964243000,-151.0,0.00032877,7]
[426859400,1782964243000,-151.0,0.00032877,7]
[426859398,1782964243000,-1379.123315,0.00032877,7]
[426859407,1782964243000,-151.0,0.00032877,7]
[426859406,1782964243000,-151.0,0.00032877,7]
[426859419,1782964243000,-151.0,0.00032877,7]
[426859411,1782964243000,-151.0,0.00032877,7]
[426859413,1782964243000,-203.50295,0.00032877,7]
[426859414,1782964243000,-153.117742,0.00032877,7]
[426859412,1782964243000,-151.0,0.00032877,7]
[426859415,1782964243000,-151.0,0.00032877,7]
[426859410,1782964243000,-151.0,0.00032877,7]
[426859416,1782964243000,-151.0,0.00032877,7]
[426859408,1782964243000,-151.0,0.00032877,7]
[426859409,1782964243000,-151.0,0.00032877,7]
[426859417,1782964243000,-151.0,0.00032877,7]
[426859486,1782964244000,-197.433107,0.00032877,7]
[426859481,1782964244000,-151.0,0.00032877,7]
[426859484,1782964244000,-151.0,0.00032877,7]
[426859487,1782964244000,-197.433107,0.00032877,7]
[426859485,1782964244000,-151.0,0.00032877,7]
[426859482,1782964244000,-159.054672,0.00032877,7]
[426859476,1782964244000,-151.0,0.00032877,7]
[426859479,1782964244000,-151.0,0.00032877,7]
[426859480,1782964244000,-151.0,0.00032877,7]
[426859483,1782964244000,-151.0,0.00032877,7]
[426859478,1782964244000,-152.812151,0.00032877,7]
[426859490,1782964244000,-197.433107,0.00032877,7]
[426859508,1782964244000,-265.363892,0.00032877,7]
[426859499,1782964244000,-151.0,0.00032877,7]
[426859491,1782964244000,-151.0,0.00032877,7]
[426859488,1782964244000,-151.0,0.00032877,7]
[426859497,1782964244000,-324.06224,0.00032877,7]
[426859496,1782964244000,-151.0,0.00032877,7]
[426859493,1782964244000,-324.06224,0.00032877,7]
[426859494,1782964244000,-151.0,0.00032877,7]
[426859492,1782964244000,-197.433107,0.00032877,7]
[426859495,1782964244000,-324.06224,0.00032877,7]
[426859511,1782964244000,-151.0,0.00032877,7]
[426859506,1782964244000,-276.725641,0.00032877,7]
[426859477,1782964244000,-151.0,0.00032877,7]
[426859498,1782964244000,-324.06224,0.00032877,7]
[426859475,1782964244000,-151.0,0.00032877,7]
[426859457,1782964244000,-151.0,0.00032877,7]
[426859470,1782964244000,-151.0,0.00032877,7]
[426859509,1782964244000,-151.0,0.00032877,7]
[426859452,1782964244000,-151.0,0.00032877,7]
[426859449,1782964244000,-152.832766,0.00032877,7]
[426859451,1782964244000,-151.0,0.00032877,7]
[426859450,1782964244000,-151.0,0.00032877,7]
[426859448,1782964244000,-240.991497,0.00032877,7]
[426859454,1782964244000,-151.0,0.00032877,7]
[426859455,1782964244000,-151.0,0.00032877,7]
[426859463,1782964244000,-190.220172,0.00032877,7]
[426859458,1782964244000,-151.0,0.00032877,7]
[426859462,1782964244000,-151.0,0.00032877,7]
[426859453,1782964244000,-151.0,0.00032877,7]
[426859456,1782964244000,-151.0,0.00032877,7]
[426859459,1782964244000,-151.0,0.00032877,7]
[426859460,1782964244000,-260.286969,0.00032877,7]
[426859461,1782964244000,-151.0,0.00032877,7]
[426859465,1782964244000,-190.220172,0.00032877,7]
[426859466,1782964244000,-151.0,0.00032877,7]
[426859464,1782964244000,-190.220172,0.00032877,7]
[426859474,1782964244000,-151.0,0.00032877,7]
[426859473,1782964244000,-151.0,0.00032877,7]
[426859468,1782964244000,-151.0,0.00032877,7]
[426859467,1782964244000,-190.220172,0.00032877,7]
[426859469,1782964244000,-151.0,0.00032877,7]
[426859471,1782964244000,-151.0,0.00032877,7]
[426859472,1782964244000,-152.809582,0.00032877,7]
[426859500,1782964244000,-151.0,0.00032877,7]
[426859502,1782964244000,-151.0,0.00032877,7]
[426859503,1782964244000,-151.0,0.00032877,7]
[426859538,1782964244000,-151.0,0.00032877,7]
[426859539,1782964244000,-156.118837,0.00032877,7]
[426859540,1782964244000,-172.357898,0.00032877,7]
[426859545,1782964244000,-151.0,0.00032877,7]
[426859542,1782964244000,-156.118837,0.00032877,7]
[426859541,1782964244000,-156.118837,0.00032877,7]
[426859543,1782964244000,-156.118837,0.00032877,7]
[426859544,1782964244000,-151.298942,0.00032877,7]
[426859547,1782964244000,-151.316827,0.00032877,7]
[426859556,1782964244000,-151.0,0.00032877,7]
[426859555,1782964244000,-151.0,0.00032877,7]
[426859546,1782964244000,-151.0,0.00032877,7]
[426859557,1782964244000,-333.427295,0.00032877,7]
[426859549,1782964244000,-151.316827,0.00032877,7]
[426859548,1782964244000,-151.0,0.00032877,7]
[426859553,1782964244000,-151.316827,0.00032877,7]
[426859551,1782964244000,-151.316827,0.00032877,7]
[426859552,1782964244000,-151.0,0.00032877,7]
[426859550,1782964244000,-151.0,0.00032877,7]
[426859554,1782964244000,-151.0,0.00032877,7]
[426859560,1782964244000,-151.0,0.00032877,7]
[426859558,1782964244000,-151.0,0.00032877,7]
[426859562,1782964244000,-333.427295,0.00032877,7]
[426859561,1782964244000,-151.0,0.00032877,7]
[426859559,1782964244000,-151.0,0.00032877,7]